bitfinex-derivatives/quotes_SOLF0:USTF0_20241027
["timestamp","ask_amount","ask_price","bid_price","bid_amount"]
[1730035285599,7.31790679,176.38,176.17,4.48]
[1730035285998,18.032141,176.38,176.17,4.48]
[1730035286202,30.42803252,176.38,176.17,4.48]
[1730035286401,10.71423421,176.37,176.18,4.48]
[1730035286709,10.71423421,176.37,176.24,2.8401]
[1730035286891,10.71423421,176.37,176.18,4.48]
[1730035287095,2.8393,176.31,176.18,4.48]
[1730035287290,6.956,176.3,176.18,4.48]
[1730035287899,6.956,176.3,176.25,2.84]
[1730035289392,6.956,176.3,176.21,2.8406]
[1730035289597,6.956,176.3,176.18,4.48]
[1730035289994,6.956,176.3,176.26,2.8399]
[1730035290300,6.956,176.3,176.18,4.48]
[1730035290498,4.0911,176.29,176.18,4.48]
[1730035291103,4.0911,176.29,176.23,2.8403]
[1730035291402,1.2516,176.29,176.13,5.6838]
[1730035291605,1.2516,176.29,176.14,4.48]
[1730035291808,1.2516,176.29,176.21,2.8406]
[1730035292398,1.2516,176.29,176.14,4.48]
[1730035292708,1.2516,176.29,176.09,1.2535]
[1730035293008,2.8404,176.23,176.18,2.8411]
[1730035293205,6.9339,176.22,176.18,2.8411]
[1730035293398,9.7745,176.22,176.17,2.8413]
[1730035294108,2.4539,176.22,176.21,2.8407]
[1730035294499,6.9339,176.22,176.21,2.8407]
[1730035294701,4.48,176.22,176.21,2.8407]
[1730035295010,4.48,176.25,176.22,2.8404]
[1730035296006,4.48,176.25,176.21,2.8407]
[1730035296207,4.48,176.25,176.14,4.48]
[1730035296506,4.48,176.25,176.21,2.8406]
[1730035296707,4.48,176.25,176.14,4.48]
[1730035297107,4.48,176.25,176.21,2.8406]
[1730035297410,4.48,176.25,176.14,4.48]
[1730035297604,4.48,176.25,176.21,2.8406]
[1730035298007,4.48,176.25,176.14,4.48]
[1730035298910,4.48,176.25,176.22,2.8406]
[1730035299313,4.48,176.25,176.14,4.48]
[1730035300204,7.3202,176.25,176.19,2.8409]
[1730035300407,4.48,176.25,176.11,4.48]
[1730035301207,4.48,176.24,176.22,2.8404]
[1730035301414,4.48,176.23,176.22,2.8404]
[1730035301807,2.4539,176.28,176.26,2.8398]
[1730035302015,4.48,176.27,176.15,4.48]
[1730035302720,4.48,176.27,176.12,5.6843]
[1730035302721,4.48,176.27,176.12,10.1643]
[1730035303317,4.48,176.27,176.19,2.841]
[1730035303318,2.8404,176.24,176.19,2.841]
[1730035303517,4.48,176.23,176.12,10.1643]
[1730035303810,4.48,176.23,176.12,4.48]
[1730035304415,4.48,176.23,176.15,2.8417]
[1730035304602,4.48,176.23,176.12,4.48]
[1730035305012,4.48,176.23,176.09,1.2535]
[1730035305211,2.8406,176.22,176.17,2.8413]
[1730035305708,2.4411,176.21,176.17,2.8413]
[1730035307003,2.4411,176.21,176.09,1.2535]
[1730035307209,5.2819,176.21,176.16,2.8415]
[1730035307405,5.2819,176.21,176.07,181.2491817]
[1730035307406,2.4411,176.21,176.07,126.0891817]
[1730035307611,2.4411,176.21,176.07,120.4031817]
[1730035307813,2.8414,176.17,176.08,2.8427]
[1730035308015,4.48,176.16,176.02,1.2746]
[1730035308216,4.48,176.15,176.02,1.2746]
[1730035308521,5.7582,176.14,176.08,2.8427]
[1730035308825,5.7211,176.13,176.08,2.8427]
[1730035309319,2.8422,176.12,176.08,2.8427]
[1730035309620,1.2411,176.13,176.0,4.48]
[1730035309823,1.2411,176.13,176.12,2.8422]
[1730035311322,4.48,176.17,176.16,2.8414]
[1730035315128,4.48,176.17,176.06,1.2683]
[1730035315423,1.1765,176.16,176.06,1.2683]
[1730035315821,1.1765,176.16,176.13,2.8419]
[1730035316023,1.1765,176.16,176.06,1.2683]
[1730035316628,1.1765,176.16,176.13,2.8419]
[1730035316813,1.1786,176.24,176.06,1.2683]
[1730035317025,5.6565,176.23,176.08,4.48]
[1730035317327,2.8407,176.22,176.17,2.8413]
[1730035317926,4.48,176.21,176.09,1.1789]
[1730035318137,4.48,176.21,176.1,5.685]
[1730035320123,4.48,176.21,176.17,2.8413]
[1730035320323,4.48,176.21,176.1,5.685]
[1730035321433,4.48,176.21,176.19,2.8411]
[1730035322833,4.48,176.21,176.12,4.48]
[1730035323027,4.48,176.21,176.2,2.8409]
[1730035323927,4.48,176.21,176.19,2.841]
[1730035325631,4.48,176.21,176.12,4.48]
[1730035325828,4.48,176.21,176.2,2.8409]
[1730035326930,4.48,176.21,176.15,2.8416]
[1730035327143,4.48,176.21,176.09,5.6589]
[1730035327532,4.48,176.21,176.06,5.7483]
[1730035327930,4.48,176.2,176.07,5.6859]
[1730035328136,4.48,176.2,176.17,2.8412]
[1730035328434,4.48,176.21,176.11,4.48]
[1730035328632,4.48,176.21,176.18,2.8411]
[1730035328829,4.48,176.21,176.12,4.48]
[1730035329028,7.3208,176.21,176.12,4.48]
[1730035329233,7.3208,176.21,176.17,2.8413]
[1730035329433,4.48,176.21,176.12,4.48]
[1730035329836,4.48,176.21,176.17,2.8413]
[1730035330041,4.48,176.21,176.12,4.48]
[1730035330937,4.48,176.21,176.14,2.8418]
[1730035331137,4.48,176.21,176.12,4.48]
[1730035331534,4.48,176.21,176.19,2.8409]
[1730035331942,4.48,176.21,176.12,4.48]
[1730035332241,4.48,176.21,176.17,2.8412]
[1730035332540,4.48,176.21,176.12,4.48]
[1730035332738,4.48,176.21,176.17,2.8413]
[1730035333134,2.8409,176.2,176.08,5.6856]
[1730035333337,4.48,176.21,176.16,2.8414]
[1730035334230,4.48,176.21,176.17,2.8413]
[1730035334435,4.48,176.21,176.09,4.48]
[1730035334643,1.1765,176.23,176.09,4.48]
[1730035334835,1.1765,176.23,176.21,2.8406]
[1730035335239,1.1765,176.23,176.14,4.48]
[1730035336043,1.1765,176.23,176.2,2.8408]
[1730035336236,1.1765,176.23,176.14,4.48]
[1730035336635,1.1765,176.23,176.21,2.8407]
[1730035337139,7.3201,176.25,176.21,2.8407]
[1730035338749,7.3201,176.25,176.14,4.48]
[1730035338943,7.3201,176.25,176.2,2.8407]
[1730035340043,4.48,176.25,176.21,2.8406]
[1730035340631,4.48,176.25,176.22,2.8406]
[1730035340837,4.48,176.25,176.14,4.48]
[1730035341137,7.3201,176.25,176.14,4.48]
[1730035341937,7.3201,176.25,176.21,2.8407]
[1730035343248,4.48,176.25,176.21,2.8407]
[1730035343641,2.3269,176.31,176.14,4.48]
[1730035343844,4.48,176.26,176.22,2.8405]
[1730035344043,1.1977,176.3,176.18,4.48]
[1730035344243,2.3269,176.31,176.18,4.48]
[1730035344548,6.8069,176.31,176.18,7.3012899]
[1730035344750,5.6406,176.31,176.18,7.3012899]
[1730035344941,5.6406,176.31,176.28,2.8395]
[1730035345141,5.6406,176.31,176.22,4.48]
[1730035345342,1.1606,176.31,176.22,4.48]
[1730035346037,4.48,176.33,176.29,2.8393]
[1730035346742,7.3188,176.34,176.29,2.8393]
[1730035348043,4.48,176.34,176.31,2.8391]
[1730035348246,4.48,176.34,176.22,4.48]
[1730035348855,7.3187,176.34,176.29,2.8393]
[1730035349243,7.3187,176.34,176.22,4.48]
[1730035349547,7.3187,176.34,176.3,2.8393]
[1730035350551,7.3187,176.34,176.29,2.8393]
[1730035351046,4.48,176.34,176.3,2.8393]
[1730035351647,7.3187,176.34,176.29,2.8394]
[1730035351845,4.48,176.34,176.2,2.4569]
[1730035352046,4.48,176.34,176.2,6.9369]
[1730035352245,2.8389,176.33,176.2,6.9369]
[1730035352447,4.48,176.34,176.2,6.9369]
[1730035353155,2.839,176.32,176.27,2.8397]
[1730035353752,4.48,176.34,176.2,6.9369]
[1730035354056,7.3188,176.34,176.2,6.9369]
[1730035354643,1.2765,176.35,176.24,5.6805]
[1730035354845,1.2765,176.35,176.25,4.48]
[1730035355044,1.2765,176.35,176.33,2.8387]
[1730035355752,1.2765,176.35,176.34,2.8386]
[1730035356452,17.05,176.54,176.29,4.48]
[1730035356657,6.9156,176.46,176.36,2.8382]
[1730035356957,8.5038,176.6,176.2,2.4569]
[1730035356958,13.80949699,176.63,176.44,28.0]
[1730035357165,10.66992789,176.63,176.45,4.48]
[1730035357387,2.3223,176.62,176.45,1.1534]
[1730035357549,1.1974,176.61,176.46,4.48]
[1730035357862,2.8349,176.57,176.46,4.48]
[1730035358046,4.48,176.56,176.46,4.48]
[1730035358249,4.48,176.56,176.53,2.8355]
[1730035358458,4.48,176.56,176.46,4.48]
[1730035358762,4.48,176.56,176.52,2.8356]
[1730035358956,4.48,176.56,176.46,4.48]
[1730035359260,4.48,176.56,176.53,2.8355]
[1730035359455,4.48,176.56,176.46,4.48]
[1730035360349,4.48,176.56,176.41,1.2052]
[1730035360548,4.48,176.56,176.42,4.48]
[1730035361657,2.8351,176.57,176.42,4.48]
[1730035361860,7.3151,176.57,176.42,4.48]
[1730035362047,4.48,176.57,176.46,2.8366]
[1730035362253,2.8351,176.56,176.47,4.48]
[1730035362452,4.48,176.57,176.41,1.2052]
[1730035362650,4.48,176.57,176.42,4.48]
[1730035362956,4.48,176.57,176.43,4.48]
[1730035363160,4.48,176.57,176.47,2.8365]
[1730035363460,2.8356,176.54,176.43,4.48]
[1730035364554,2.8356,176.54,176.47,2.8364]
[1730035365151,4.48,176.57,176.43,4.48]
[1730035365357,2.8358,176.52,176.43,4.48]
[1730035365563,4.48,176.57,176.43,4.48]
[1730035365857,2.8356,176.53,176.48,2.8363]
[1730035366057,4.48,176.57,176.41,1.2052]
[1730035366366,1.1653,176.52,176.42,4.48]
[1730035366556,4.0011,176.52,176.42,4.48]
[1730035366960,4.0011,176.52,176.46,2.8366]
[1730035367158,4.48,176.51,176.4,103.03302893]
[1730035367456,6.8915,176.51,176.4,103.03302893]
[1730035367960,9.7274,176.51,176.43,2.8371]
[1730035368154,2.4115,176.51,176.4,103.03302893]
[1730035368361,4.46,176.58,176.43,4.46]
[1730035368553,4.46,176.57,176.43,4.46]
[1730035369556,2.8358,176.52,176.43,4.46]
[1730035369762,2.8358,176.52,176.47,2.8364]
[1730035370165,2.836,176.51,176.45,4.46]
[1730035370367,2.836,176.51,176.46,2.8366]
[1730035370661,2.836,176.51,176.45,4.46]
[1730035371661,2.836,176.51,176.46,2.8367]
[1730035371857,2.8362,176.49,176.4,103.03302893]
[1730035372172,4.46,176.53,176.41,4.46]
[1730035372354,1.2366,176.52,176.42,4.46]
[1730035373457,4.0724,176.52,176.47,2.8364]
[1730035373663,4.46,176.56,176.47,4.46]
[1730035373963,4.46,176.58,176.47,4.46]
[1730035374559,2.8361,176.5,176.46,2.8366]
[1730035374762,4.46,176.58,176.45,4.46]
[1730035375169,2.836,176.51,176.48,2.8363]
[1730035375462,4.46,176.54,176.4,103.03302893]
[1730035375770,2.8361,176.5,176.44,2.8369]
[1730035375970,4.46,176.53,176.43,4.46]
[1730035376169,2.5253,176.52,176.43,4.46]
[1730035376564,2.8365,176.48,176.45,2.8369]
[1730035377575,2.8363,176.49,176.45,2.8369]
[1730035378071,2.5253,176.52,176.45,2.8369]
[1730035378266,2.5253,176.52,176.4,103.03302893]
[1730035378571,2.8368,176.46,176.4,107.49302893]
[1730035379873,2.8371,176.44,176.41,2.8374]
[1730035380170,2.8371,176.44,176.31,4.46]
[1730035380171,4.46,176.44,176.31,4.46]
[1730035380376,4.46,176.44,176.32,1.04302726]
[1730035380669,4.46,176.44,176.32,2.32102726]
[1730035380869,4.46,176.45,176.4,2.8376]
[1730035381073,7.297,176.45,176.36,4.46]
[1730035381272,7.297,176.45,176.37,4.46]
[1730035381472,7.297,176.45,176.4,2.8376]
[1730035381874,4.46,176.45,176.37,4.46]
[1730035382469,4.46,176.45,176.37,7.298]
[1730035382470,2.8375,176.42,176.37,7.298]
[1730035382673,2.4244,176.44,176.32,1.278]
[1730035382879,2.4244,176.44,176.33,4.46]
[1730035383070,2.8378,176.4,176.33,4.46]
[1730035383474,2.8378,176.4,176.32,1.278]
[1730035383475,2.8378,176.4,176.36,2.8382]
[1730035383778,1.1601,176.43,176.32,5.738]
[1730035383973,2.4244,176.44,176.33,1.04300122]
[1730035384173,5.2614,176.44,176.33,1.04300122]
[1730035384571,2.4244,176.44,176.4,2.8376]
[1730035384773,1.2392,176.44,176.4,2.8376]
[1730035385079,4.46,176.47,176.44,2.837]
[1730035385278,1.2102,176.49,176.37,4.68]
[1730035385479,1.1531,176.55,176.37,4.68]
[1730035385778,4.68,176.54,176.38,1.04274163]
[1730035385977,2.8361,176.5,176.38,1.04274163]
[1730035386367,2.8361,176.5,176.37,4.68]
[1730035386675,2.8364,176.48,176.38,4.68]
[1730035386874,4.68,176.54,176.38,4.68]
[1730035387076,4.68,176.54,176.39,4.68]
[1730035387575,2.8363,176.49,176.44,2.8369]
[1730035387777,2.8363,176.49,176.39,4.68]
[1730035388476,4.68,176.54,176.39,4.68]
[1730035388778,2.8358,176.52,176.39,4.68]
[1730035388983,4.68,176.53,176.48,2.8363]
[1730035389280,1.1601,176.6,176.55,77.6367]
[1730035389480,4.68,176.59,176.55,77.6367]
[1730035389676,2.8351,176.56,176.55,77.6367]
[1730035390474,7.5151,176.56,176.55,77.6367]
[1730035391379,2.8351,176.56,176.55,77.6367]
[1730035392180,4.68,176.57,176.55,77.6367]
[1730035392686,2.8351,176.56,176.55,77.6367]
[1730035395503,7.5151,176.56,176.55,77.6367]
[1730035396499,7.5151,176.56,176.55,71.7313]
[1730035396798,7.5151,176.56,176.55,67.8965]
[1730035398004,2.8351,176.56,176.55,67.8965]
[1730035398901,2.8351,176.57,176.55,67.8965]
[1730035399498,4.68,176.58,176.55,67.8965]
[1730035399707,2.835,176.57,176.55,67.8965]
[1730035400603,5.9408,176.59,176.55,67.8965]
[1730035401502,1.1705,176.58,176.55,67.8965]
[1730035402004,2.8351,176.56,176.55,67.8965]
[1730035402306,2.8351,176.56,176.55,65.979]
[1730035403014,2.8351,176.56,176.55,64.0615]
[1730035404105,2.835,176.57,176.55,64.0615]
[1730035404298,4.68,176.58,176.55,64.0615]
[1730035404499,4.68,176.58,176.56,2.8351]
[1730035404701,2.8349,176.57,176.55,64.0615]
[1730035404907,4.68,176.58,176.55,64.0615]
[1730035405803,2.834,176.63,176.55,64.0615]
[1730035406012,8.98664779,176.66,176.55,64.0615]
[1730035406304,2.834,176.63,176.55,64.0615]
[1730035406505,4.68,176.62,176.55,64.0615]
[1730035407406,2.835,176.57,176.55,64.0615]
[1730035407799,4.68,176.62,176.55,64.0615]
[1730035408003,2.8351,176.56,176.55,64.0615]
[1730035408503,2.835,176.57,176.55,64.0615]
[1730035409612,4.68,176.62,176.55,64.0615]
[1730035410209,2.8351,176.56,176.55,64.0615]
[1730035414515,4.68,176.58,176.55,64.0615]
[1730035415210,2.8351,176.56,176.55,64.0615]
[1730035416506,1.2297,176.64,176.55,64.0615]
[1730035416707,4.9,176.63,176.55,64.0615]
[1730035417823,1.2297,176.64,176.56,2.8351]
[1730035418027,2.8346,176.6,176.56,2.8351]
[1730035418214,4.9,176.63,176.55,64.0615]
[1730035418414,1.2484,176.65,176.58,2.8347]
[1730035418713,1.2484,176.65,176.55,64.0615]
[1730035418714,4.9,176.64,176.55,64.0615]
[1730035419116,2.8344,176.61,176.57,2.8348]
[1730035419319,1.2484,176.65,176.55,64.0615]
[1730035419522,2.834,176.63,176.59,2.8345]
[1730035419723,1.2484,176.65,176.55,64.0615]
[1730035419921,8.98664779,176.66,176.55,64.0615]
[1730035420125,2.8339,176.64,176.6,2.8345]
[1730035420322,8.98664779,176.66,176.57,1.1811]
[1730035420730,2.8339,176.64,176.57,1.1811]
[1730035421120,8.98664779,176.66,176.61,2.8342]
[1730035421321,2.8338,176.65,176.57,1.1811]
[1730035421623,8.98664779,176.66,176.57,1.1811]
[1730035421817,2.8337,176.65,176.57,1.1811]
[1730035422013,8.98664779,176.66,176.57,1.1811]
[1730035422222,8.98664779,176.66,176.62,2.834]
[1730035422421,8.98664779,176.66,176.57,1.1811]
[1730035422924,8.98664779,176.66,176.62,2.834]
[1730035423124,8.98664779,176.66,176.57,1.1811]
[1730035423729,13.88664779,176.66,176.57,1.1811]
[1730035424228,2.8343,176.62,176.57,4.0159]
[1730035424431,2.8343,176.62,176.57,1.1811]
[1730035424616,13.88664779,176.66,176.57,1.1811]
[1730035424823,2.8338,176.65,176.61,2.8342]
[1730035425123,13.88664779,176.66,176.57,1.1811]
[1730035425124,8.98664779,176.66,176.6,4.9]
[1730035425428,8.98664779,176.66,176.64,2.8337]
[1730035425629,8.98664779,176.66,176.6,4.9]
[1730035425830,8.98664779,176.66,176.63,2.8339]
[1730035426021,8.98664779,176.66,176.6,4.9]
[1730035427136,8.98664779,176.66,176.58,6.1229]
[1730035430135,8.98664779,176.66,176.65,2.8337]
[1730035430426,8.98664779,176.66,176.58,6.1229]
[1730035430628,8.98664779,176.66,176.6,64.0615]
[1730035430829,8.98664779,176.66,176.65,2.8337]
[1730035431129,8.98664779,176.66,176.6,64.0615]
[1730035432222,13.88664779,176.66,176.6,64.0615]
[1730035432926,13.88664779,176.66,176.61,2.8343]
[1730035433128,2.8338,176.65,176.61,2.8343]
[1730035433329,2.8338,176.65,176.6,64.0615]
[1730035433526,2.8338,176.65,176.62,2.8341]
[1730035433725,8.98664779,176.66,176.6,64.0615]
[1730035434129,8.98664779,176.66,176.62,2.8341]
[1730035434531,8.98664779,176.66,176.6,64.0615]
[1730035435132,2.8337,176.65,176.61,2.8342]
[1730035435332,8.98664779,176.66,176.6,64.0615]
[1730035435525,4.9,176.65,176.6,64.0615]
[1730035435730,2.8343,176.61,176.6,64.0615]
[1730035437628,6.1471,176.65,176.6,64.0615]
[1730035438127,2.8343,176.61,176.6,64.0615]
[1730035440333,7.7343,176.62,176.6,64.0615]
[1730035440636,1.2471,176.65,176.6,64.0615]
[1730035440941,4.9,176.64,176.6,64.0615]
[1730035441935,2.8343,176.61,176.6,64.0615]
[1730035442539,2.8343,176.61,176.6,62.1439]
[1730035443442,2.8343,176.61,176.6,56.8188]
[1730035443736,7.7343,176.61,176.6,56.8188]
[1730035445638,7.7343,176.61,176.6,53.2032]
[1730035446042,7.7343,176.61,176.6,49.7225]
[1730035448736,7.7343,176.61,176.6,46.4986]
[1730035449142,2.8343,176.61,176.6,46.4986]
[1730035449347,7.7943,176.61,176.6,46.4986]
[1730035449839,2.8343,176.61,176.6,46.4986]
[1730035450239,4.96,176.61,176.6,46.4986]
[1730035450739,7.7943,176.61,176.6,46.4986]
[1730035454648,7.7943,176.61,176.6,43.5713]
[1730035456639,62.8743,176.61,176.6,33.8932]
[1730035456846,79.9243,176.61,176.6,14.2821]
[1730035457042,87.75312261,176.61,176.43,2.4554]
[1730035457350,5.6695,176.59,176.43,2.4554]
[1730035457747,2.8358,176.52,176.48,2.8363]
[1730035458050,4.96,176.52,176.43,2.4554]
[1730035458847,7.7958,176.52,176.48,2.8362]
[1730035459145,7.7958,176.52,176.43,2.4554]
[1730035459146,4.96,176.52,176.43,2.4554]
[1730035459551,7.7958,176.52,176.48,2.8363]
[1730035459744,7.7958,176.52,176.43,2.4554]
[1730035459939,7.7958,176.52,176.48,2.8363]
[1730035460739,222.13237416,176.76,176.46,7.77477569]
[1730035460740,8.98664779,176.66,176.46,7.77477569]
[1730035461141,8.98664779,176.66,176.46,4.96]
[1730035461343,8.98664779,176.66,176.55,2.8351]
[1730035461643,8.98664779,176.66,176.47,4.96]
[1730035461844,2.835,176.57,176.53,2.8356]
[1730035462041,4.96,176.64,176.54,1.2089]
[1730035462940,2.8349,176.58,176.54,1.2089]
[1730035463544,4.96,176.61,176.54,1.2089]
[1730035463855,2.834,176.63,176.55,4.96]
[1730035464347,2.8339,176.64,176.55,4.96]
[1730035464747,8.98664779,176.66,176.55,4.96]
[1730035465447,8.98664779,176.66,176.62,2.834]
[1730035465853,8.98664779,176.66,176.58,2.8347]
[1730035466045,8.98664779,176.66,176.59,2.3744]
[1730035466255,2.8337,176.65,176.59,2.3744]
[1730035466553,2.8337,176.65,176.61,2.8342]
[1730035466755,8.98664779,176.66,176.59,2.3744]
[1730035466950,8.98664779,176.66,176.59,1.1576]
[1730035468463,3.23504779,176.66,176.59,1.1576]
[1730035468952,6.06864779,176.66,176.59,1.1576]
[1730035469152,6.06864779,176.66,176.59,6.1176]
[1730035469350,3.23504779,176.66,176.59,6.1176]
[1730035471255,3.23504779,176.66,176.65,2.8337]
[1730035472248,3.23504779,176.66,176.59,6.1176]
[1730035472854,3.23504779,176.66,176.64,2.8338]
[1730035474057,2.8337,176.65,176.62,2.834]
[1730035474747,2.8339,176.64,176.61,2.8343]
[1730035475658,2.8338,176.64,176.59,1.1576]
[1730035475852,3.23504779,176.66,176.59,1.1576]
[1730035476154,2.8342,176.62,176.59,1.1576]
[1730035477161,3.23504779,176.66,176.59,1.1576]
[1730035477754,2.8337,176.65,176.61,2.8342]
[1730035477955,2.8337,176.65,176.59,1.1576]
[1730035478457,2.8337,176.65,176.61,2.8342]
[1730035479260,3.23504779,176.66,176.64,2.8337]
[1730035479651,3.23504779,176.66,176.6,4.98]
[1730035480352,3.23504779,176.66,176.65,2.8337]
[1730035480763,3.23504779,176.66,176.6,4.98]
[1730035480764,3.23504779,176.66,176.64,2.8337]
[1730035481364,3.23504779,176.66,176.65,2.8337]
[1730035483257,3.23504779,176.66,176.64,2.8337]
[1730035483465,3.23504779,176.66,176.61,6.2491]
[1730035484259,3.23504779,176.66,176.64,2.8337]
[1730035484659,3.23504779,176.66,176.61,1.2691]
[1730035485761,3.23504779,176.66,176.62,2.8341]
[1730035485968,3.23504779,176.66,176.61,1.2691]
[1730035486565,3.23504779,176.66,176.62,2.8341]
[1730035486773,3.23504779,176.66,176.61,1.2691]
[1730035488161,2.8339,176.64,176.61,1.2691]
[1730035488861,3.23504779,176.66,176.61,1.2691]
[1730035489959,2.8341,176.63,176.59,1.1576]
[1730035490264,3.23504779,176.66,176.57,1.2168]
[1730035490564,2.8312,176.81,176.73,2.8322]
[1730035490761,2.8312,176.81,176.57,29.2168]
[1730035490762,4.07559328,176.85,176.71,4.98]
[1730035491060,2.8321,176.75,176.69,2.8329]
[1730035491267,4.98,176.84,176.68,4.98]
[1730035491465,7.78453013,176.84,176.62,55.06]
[1730035491666,7.78453013,176.84,176.63,4.98]
[1730035491859,2.832,176.76,176.69,2.833]
[1730035492055,2.832,176.76,176.68,4.98]
[1730035492569,2.832,176.76,176.64,1.2199]
[1730035492776,2.832,176.76,176.65,4.98]
[1730035493063,2.8316,176.78,176.72,2.8324]
[1730035493264,4.98,176.8,176.72,2.8324]
[1730035493569,4.98,176.8,176.65,4.98]
[1730035493768,2.832,176.76,176.65,4.98]
[1730035494066,4.98,176.8,176.66,4.98]
[1730035494259,4.98,176.8,176.64,1.2199]
[1730035494460,4.98,176.8,176.65,4.98]
[1730035494867,2.832,176.76,176.7,2.8328]
[1730035495062,4.98,176.8,176.7,2.8328]
[1730035495570,2.8322,176.75,176.7,2.8328]
[1730035495769,2.8322,176.75,176.66,2.5345]
[1730035495770,4.98,176.8,176.66,2.5345]
[1730035496265,2.8319,176.76,176.7,2.8329]
[1730035496463,4.98,176.8,176.7,2.8329]
[1730035496770,4.98,176.8,176.66,2.5345]
[1730035497166,4.98,176.8,176.7,2.8328]
[1730035497867,2.8322,176.75,176.7,2.8328]
[1730035498366,4.98,176.8,176.66,2.5345]
[1730035498573,2.8319,176.76,176.66,2.5345]
[1730035498963,2.8319,176.76,176.71,2.8325]
[1730035499165,4.98,176.8,176.66,2.5345]
[1730035499674,4.98,176.8,176.72,2.8324]
[1730035499973,2.8319,176.77,176.72,2.8324]
[1730035500168,2.8319,176.77,176.7,4.98]
[1730035500370,2.8319,176.77,176.73,2.8323]
[1730035500567,2.8318,176.77,176.73,2.8323]
[1730035501067,4.98,176.81,176.7,4.98]
[1730035501275,2.8317,176.78,176.73,2.8323]
[1730035501571,1.2541,176.82,176.7,4.98]
[1730035501763,2.8317,176.78,176.7,4.98]
[1730035501960,4.98,176.82,176.71,1.2594]
[1730035502165,1.0,176.83,176.71,1.2594]
[1730035502364,2.8313,176.8,176.76,2.8318]
[1730035502577,1.0,176.83,176.71,1.2594]
[1730035502767,2.8314,176.79,176.74,2.8321]
[1730035503071,4.98,176.81,176.68,4.98]
[1730035503276,2.8322,176.75,176.7,2.8327]
[1730035503476,2.8322,176.75,176.68,4.98]
[1730035503873,2.8322,176.75,176.7,2.8328]
[1730035504372,4.98,176.81,176.68,4.98]
[1730035504574,2.8321,176.75,176.71,2.8326]
[1730035504871,4.98,176.81,176.67,1.2594]
[1730035505173,2.8325,176.73,176.67,1.2594]
[1730035505568,4.98,176.81,176.67,1.2594]
[1730035505771,2.8323,176.74,176.67,1.2594]
[1730035506178,2.8323,176.74,176.7,2.8328]
[1730035506577,5.06,176.76,176.41,230.90907161]
[1730035506774,7.4696,176.75,176.6,2.389]
[1730035507076,5.06,176.74,176.6,2.389]
[1730035507270,2.8336,176.66,176.61,2.8342]
[1730035507683,2.8339,176.64,176.6,2.389]
[1730035507873,5.06,176.74,176.6,2.389]
[1730035508075,5.06,176.73,176.6,2.389]
[1730035508269,2.8338,176.65,176.6,5.2233]
[1730035508476,5.06,176.73,176.6,5.2233]
[1730035508873,2.8337,176.65,176.61,2.8343]
[1730035509075,5.06,176.68,176.58,1.2066]
[1730035509678,2.4236,176.67,176.55,100.0]
[1730035509882,5.06,176.66,176.55,100.0]
[1730035511073,1.0,176.65,176.55,100.0]